fUST/lending_fUST_20250624
["ID","MTS","AMOUNT","RATE_DAILY","PERIOD"]
[367298552,1750735843363,-460.0,0.00020007,2]
[367298554,1750735843373,-726.05,0.00020007,2]
[367298556,1750735843382,-460.0,0.00020007,2]
[367298558,1750735843392,-519.28,0.00020007,2]
[367298560,1750735843401,-824.98,0.00020007,2]
[367298562,1750735843410,-460.0,0.00020007,2]
[367298564,1750735843420,-460.0,0.00020007,2]
[367298566,1750735843430,-460.0,0.00020007,2]
[367298568,1750735843440,-463.27,0.00020007,2]
[367298570,1750735843453,-711.59,0.00020007,2]
[367298572,1750735843463,-460.0,0.00020007,2]
[367298574,1750735843473,-460.0,0.00020007,2]
[367298577,1750735843491,-460.0,0.00020007,2]
[367298580,1750735843503,-2417.79,0.00020007,2]
[367298582,1750735843513,-2133.94,0.00020007,2]
[367298584,1750735843524,-1488.65,0.00020007,2]
[367298586,1750735843535,-460.0,0.00020007,2]
[367298588,1750735843545,-1203.79,0.00020007,2]
[367298590,1750735843555,-3331.39,0.00020007,2]
[367298592,1750735843566,-1307.83,0.00020007,2]
[367298594,1750735843576,-460.0,0.00020007,2]
[367298597,1750735843586,-460.0,0.00020007,2]
[367298599,1750735843597,-2085.31,0.00020007,2]
[367298601,1750735843606,-460.0,0.00020017,2]
[367298603,1750735843617,-460.0,0.00020018,2]
[367298605,1750735843627,-460.0,0.00020019,2]
[367298607,1750735843637,-460.0,0.00020019,2]
[367298609,1750735843647,-460.0,0.00020019,2]
[367298611,1750735843657,-460.0,0.00020019,2]
[367298613,1750735843668,-1295.08,0.00020019,2]
[367298615,1750735843677,-151.0,0.0002002,2]
[367298617,1750735843688,-151.0,0.00020021,2]
[367298620,1750735843697,-151.0,0.00020021,2]
[367298622,1750735843707,-569.13156424,0.00020055,2]
[367298624,1750735843717,-569.13156424,0.00020137,2]
[367298626,1750735843728,-3243.72964199,0.00020179,2]
[367298628,1750735843737,-344.938586,0.00020187,2]
[367298630,1750735843748,-151.0,0.000202,4]
[367298632,1750735843758,-569.13156424,0.00020247,2]
[367298634,1750735843767,-584.1579768,0.00020268,2]
[367298636,1750735843778,-726.91597937,0.00020269,2]
[367298638,1750735843788,-8850.26413422,0.00020269,2]
[367298640,1750735843798,-3619.82991166,0.00020269,2]
[367298641,1750735843808,-454971.97895919,0.00020269,2]
[367298642,1750735843834,-460.0,0.00020004,2]
[367298643,1750735843844,-7893.0393064,0.00020269,2]
[367298644,1750735843919,-707.8299102,0.00020269,2]
[367298645,1750735844111,-553.18852033,0.00020269,2]
[367298895,1750736030824,6551.08,0.000191,2]
[367298898,1750736061485,202.06258622,0.00019083,2]
[367298899,1750736080465,202.91177208,0.00018603,2]
[367298900,1750736106353,320.407412,0.00013699,2]
[367298905,1750736840272,-300.0,0.00019165,2]
[367298906,1750736840295,-300.0,0.00019165,2]
[367298907,1750736840319,-362.22907912,0.00019165,2]
[367298908,1750736840340,-500.0,0.00019166,2]
[367298909,1750736840361,-114.81468313,0.00019166,2]
[367298910,1750736843113,-385.18531687,0.00019166,2]
[367298911,1750736843134,-500.0,0.00019166,2]
[367298912,1750736843154,-500.0,0.00019166,2]
[367298913,1750736843175,-500.0,0.00019166,2]
[367298914,1750736843195,-500.0,0.00019166,2]
[367298915,1750736843215,-500.0,0.00019166,2]
[367298916,1750736843235,-500.0,0.00019166,2]
[367298917,1750736843255,-236.30218664,0.00019166,2]
[367298919,1750736876750,192.59163511,0.00019078,2]
[367298920,1750736901840,865.0,0.00019,2]
[367298931,1750737032515,-300.0,0.00019165,2]
[367298932,1750737032525,-300.0,0.00019165,2]
[367298933,1750737032534,-1200.0,0.00019165,2]
[367298934,1750737032543,-152.64180902,0.00019165,2]
[367298935,1750737032569,-147.35819098,0.00019165,2]
[367298936,1750737032579,-500.0,0.00019166,2]
[367298937,1750737032590,-272.64180902,0.00019166,2]
[367298967,1750737038509,-227.35819098,0.00019166,2]
[367298969,1750737038519,-500.0,0.00019166,2]
[367298971,1750737038528,-190.04238384,0.00019166,2]
[367298973,1750737038539,-309.95761616,0.00019166,2]
[367298975,1750737038549,-500.0,0.00019166,2]
[367298977,1750737038558,-500.0,0.00019166,2]
[367298979,1750737038567,-500.0,0.00019166,2]
[367298981,1750737038576,-500.0,0.00019166,2]
[367298983,1750737038585,-500.0,0.00019166,2]
[367298985,1750737038595,-207.4,0.00019166,2]
[367298987,1750737038604,-500.0,0.00019166,2]
[367298989,1750737038614,-500.0,0.00019166,2]
[367298991,1750737038623,-500.0,0.00019166,2]
[367298993,1750737038632,-500.0,0.00019166,2]
[367298995,1750737038642,-500.0,0.00019166,2]
[367298997,1750737038651,-500.0,0.00019166,2]
[367298999,1750737038660,-139.67799269,0.00019166,2]
[367299480,1750737043752,-360.32200731,0.00019166,2]
[367299482,1750737043761,-500.0,0.00019166,2]
[367299484,1750737043770,-500.0,0.00019166,2]
[367299486,1750737043779,-1002.08799269,0.00019166,2]
[367299490,1750737043807,-1831.20878622,0.00019166,2]
[367299492,1750737043816,-500.0,0.00019177,2]
[367299494,1750737043825,-500.0,0.00019177,2]
[367299496,1750737043835,-500.0,0.00019177,2]
[367299498,1750737043845,-500.0,0.00019177,2]
[367299500,1750737043854,-253.96753686,0.00019177,2]
[367299804,1750737046755,-246.03246314,0.00019177,2]
[367299806,1750737046765,-500.0,0.00019177,2]
[367299808,1750737046774,-260.08069463,0.00019177,2]
[367299809,1750737046783,-450.21917539,0.00019177,2]
[367300017,1750737102482,160.0,0.00018808,3]
[367300021,1750737175702,313.760506,0.00013699,2]
[367300022,1750737236710,250.0,0.00018947,2]
[367300024,1750737313147,-160.0,0.00019147,4]
[367300025,1750737313173,-62.842108,0.00019166,2]
[367300026,1750737395929,222.842108,0.00019078,2]
[367300028,1750737477184,5000.0,0.00016,2]
[367300029,1750737780669,300.88103587,0.000191,2]
[367300030,1750737833111,460.0,0.000191,2]
[367300031,1750737840786,460.0,0.000191,2]
[367300032,1750737841946,460.0,0.000191,2]
[367300033,1750737842906,460.0,0.000191,2]
[367300034,1750737844235,460.0,0.000191,2]
[367300035,1750737847447,460.0,0.000191,2]
[367300038,1750738049128,-362.47801043,0.00019172,2]
[367300039,1750738049149,-207.4,0.00019172,2]
[367300040,1750738049168,-300.0,0.00019176,2]
[367300041,1750738049189,-197.01367903,0.00019176,2]
[367300042,1750738051130,-102.98632097,0.00019176,2]
[367300043,1750738051151,-193.86207648,0.00019176,2]
[367300068,1750738232692,-207.4,0.00019172,2]
[367300070,1750738232702,-300.0,0.00019176,2]
[367300072,1750738232712,-300.0,0.00019176,2]
[367300074,1750738232722,-1200.0,0.00019176,2]
[367300076,1750738232731,-542.43240703,0.00019177,2]
[367300078,1750738232741,-49.78082461,0.00019177,2]
[367300080,1750738232751,-500.0,0.00019177,2]
[367300082,1750738232760,-500.0,0.00019177,2]
[367300084,1750738232770,-500.0,0.00019177,2]
[367300086,1750738232780,-382.05648624,0.00019177,2]
[367300088,1750738232790,-500.0,0.00019177,2]
[367300090,1750738232799,-600.0,0.00019177,2]
[367300092,1750738232808,-469.13224602,0.00019178,2]
[367300094,1750738232817,-460.0,0.00019178,2]
[367300096,1750738232826,-460.0,0.00019178,2]
[367300098,1750738232836,-460.0,0.00019178,2]
[367300100,1750738232845,-460.0,0.00019178,2]
[367300102,1750738232855,-460.0,0.00019178,2]
[367300104,1750738232863,-1003.16,0.00019178,2]
[367300106,1750738232873,-460.0,0.00019178,2]
[367300108,1750738232882,-108.86879009,0.00019178,2]
[367300330,1750738238666,-351.13120991,0.00019178,2]
[367300332,1750738238676,-460.0,0.00019178,2]
[367300334,1750738238686,-460.0,0.00019178,2]
[367300336,1750738238696,-1123.47437883,0.00019178,2]
[367300338,1750738238708,-147.42562117,0.00019178,2]
[367300340,1750738238717,-460.0,0.00019178,2]
[367300342,1750738238727,-460.0,0.00019178,2]
[367300344,1750738238737,-460.0,0.00019178,2]
[367300346,1750738238746,-47.59759289,0.00019178,2]
[367300348,1750738238759,-154.51067009,0.00019178,2]
[367300351,1750738238768,-355.26366281,0.00019178,2]
[367300353,1750738238778,-460.0,0.00019178,2]
[367300355,1750738238787,-86.60551815,0.00019178,2]
[367300357,1750738238800,-135.97448185,0.00019178,2]
[367300359,1750738238809,-340.53734078,0.00019178,2]
[367300361,1750738238820,-460.0,0.00019178,2]
[367300363,1750738238830,-460.0,0.00019178,2]
[367300365,1750738238840,-460.0,0.00019178,2]
[367300367,1750738238849,-605.05,0.00019178,2]
[367300369,1750738238859,-460.0,0.00019178,2]
[367300371,1750738238868,-460.0,0.00019178,2]
[367300373,1750738238878,-350.04173578,0.00019178,2]
[367300375,1750738238887,-460.0,0.00019178,2]
[367300377,1750738238897,-458.29505541,0.00019178,2]
[367300379,1750738238907,-394.04909701,0.00019178,2]
[367300382,1750738238918,-127.86249384,0.00019178,2]
[367300384,1750738238935,-266.38516053,0.00019178,2]
[367300387,1750738238945,-460.0,0.00019178,2]
[367300389,1750738238955,-460.0,0.00019178,2]
[367300391,1750738238964,-460.0,0.00019178,2]
[367300393,1750738238974,-345.83358502,0.00019178,2]
[367300395,1750738238983,-460.0,0.00019178,2]
[367300397,1750738238993,-460.0,0.00019178,2]
[367300399,1750738239002,-246.56495475,0.00019178,2]
[367300401,1750738239012,-460.0,0.00019178,2]
[367300403,1750738239022,-460.0,0.00019178,2]
[367300405,1750738239031,-460.0,0.00019178,2]
[367300407,1750738239040,-460.0,0.00019178,2]
[367300409,1750738239050,-460.0,0.00019178,2]
[367300411,1750738239060,-460.0,0.00019178,2]
[367300413,1750738239069,-460.0,0.00019178,2]
[367300415,1750738239079,-460.0,0.00019178,2]
[367300417,1750738239088,-2142.24,0.00019178,2]
[367300419,1750738239097,-687.49,0.00019178,2]
[367300421,1750738239107,-1970.86,0.00019178,2]
[367300423,1750738239117,-410.68628301,0.00019178,2]
[367300425,1750738239126,-460.0,0.00019178,2]
[367300427,1750738239135,-460.0,0.00019178,2]
[367300429,1750738239145,-346.03715028,0.00019178,2]
[367300431,1750738239155,-722.44,0.00019178,2]
[367300433,1750738239165,-562.81,0.00019178,2]
[367300435,1750738239175,-1298.04,0.00019178,2]
[367300437,1750738239184,-586.2366779,0.00019178,2]
[367300439,1750738239194,-460.0,0.00019178,2]
[367300441,1750738239203,-516.97,0.00019178,2]
[367300443,1750738239213,-460.0,0.00019178,2]
[367300445,1750738239222,-625.28,0.00019178,2]
[367300447,1750738239232,-460.0,0.00019178,2]
[367300449,1750738239242,-1816.61,0.00019178,2]
[367300451,1750738239251,-460.0,0.00019178,2]
[367300453,1750738239262,-460.0,0.00019178,2]
[367300455,1750738239272,-460.0,0.00019178,2]
[367300457,1750738239281,-460.0,0.00019178,2]
[367300459,1750738239291,-1560.02,0.00019178,2]
[367300461,1750738239300,-151.75220177,0.00019178,2]
[367300463,1750738239311,-4491.91,0.00019178,2]
[367300465,1750738239320,-316.8,0.00019178,2]
[367300467,1750738239330,-1473.56,0.00019178,2]
[367300469,1750738239340,-714.99,0.00019178,2]
[367300471,1750738239349,-460.0,0.00019178,2]
[367300473,1750738239358,-460.0,0.00019178,2]
[367300475,1750738239367,-460.0,0.00019178,2]
[367300477,1750738239376,-917.68,0.00019178,2]
[367300479,1750738239387,-314.61656935,0.00019178,2]
[367300481,1750738239397,-2445.98,0.00019178,2]
[367300483,1750738239407,-1147.36,0.00019178,2]
[367300485,1750738239427,-718.52,0.00019178,2]
[367300487,1750738239437,-460.0,0.00019178,2]
[367300489,1750738239446,-460.0,0.00019178,2]
[367300491,1750738239456,-218.59765811,0.00019178,2]
[367300494,1750738239465,-830.81,0.00019178,2]
[367300496,1750738239475,-2833.66,0.00019178,2]
[367300498,1750738239484,-460.0,0.00019178,2]
[367300499,1750738239495,-826.26,0.00019178,2]
[367300502,1750738239504,-615.31,0.00019178,2]
[367300503,1750738239514,-460.0,0.00019178,2]
[367300506,1750738239524,-673.38,0.00019178,2]
[367300508,1750738239533,-1105.83,0.00019178,2]
[367300510,1750738239542,-702.21,0.00019178,2]
[367300512,1750738239552,-460.0,0.00019178,2]
[367300514,1750738239561,-886.87,0.00019178,2]
[367300516,1750738239570,-551.99,0.00019178,2]
[367300518,1750738239579,-706.29,0.00019178,2]
[367300520,1750738239589,-1737.76,0.00019178,2]
[367300522,1750738239598,-1605.77,0.00019178,2]
[367300523,1750738239607,-421.18108586,0.00019178,2]
[367300526,1750738239617,-558.57,0.00019178,2]
[367300528,1750738239627,-1908.57,0.00019178,2]
[367300530,1750738239637,-569.34,0.00019178,2]
[367300532,1750738239647,-2152.46,0.00019178,2]
[367300533,1750738239657,-460.0,0.00019178,2]
[367300536,1750738239666,-940.78,0.00019178,2]
[367300537,1750738239675,-590.66,0.00019178,2]
[367300540,1750738239688,-678.37,0.00019178,2]
[367300542,1750738239697,-657.5,0.00019178,2]
[367300544,1750738239707,-648.94,0.00019178,2]
[367300546,1750738239717,-460.0,0.00019178,2]
[367300548,1750738239726,-1599.4,0.00019178,2]
[367300550,1750738239735,-510.07,0.00019178,2]
[367300552,1750738239744,-460.0,0.00019178,2]
[367300554,1750738239754,-460.0,0.00019178,2]
[367300556,1750738239763,-359.68031635,0.00019178,2]
[367300557,1750738239773,-545.41280487,0.00019178,2]
[367300558,1750738239782,-545.41280487,0.00019178,2]
[367300559,1750738239791,-460.0,0.00019178,2]
[367300560,1750738239801,-961.36,0.00019178,2]
[367300561,1750738239811,-218.262394,0.00019178,2]
[367300562,1750738239820,-500.0,0.00019388,2]
[367300563,1750738239829,-153.85606739,0.00019388,2]
[367300564,1750738239839,-533.95349112,0.00019415,2]
[367300565,1750738239848,-801.25,0.00019442,3]
[367300566,1750738239857,-400.62,0.00019442,3]
[367300567,1750738239866,-200.31,0.00019442,3]
[367300568,1750738239875,-600.98,0.00019442,3]
[367300569,1750738239884,-17048.87070348,0.00019443,2]
[367300570,1750738239893,-205.61,0.00019451,2]
[367300571,1750738239902,-440.0,0.00019452,2]
[367300572,1750738239911,-460.0,0.00019452,2]
[367300573,1750738239920,-460.0,0.00019452,2]
[367300574,1750738239930,-460.0,0.00019452,2]
[367300575,1750738239939,-460.0,0.00019452,2]
[367300576,1750738239948,-460.0,0.00019452,2]
[367300577,1750738239958,-460.0,0.00019452,2]
[367300578,1750738239967,-460.0,0.00019452,2]
[367300579,1750738239977,-460.0,0.00019452,2]
[367300580,1750738239986,-1270.9,0.00019452,2]
[367300581,1750738239995,-460.0,0.00019452,2]
[367300582,1750738240004,-460.0,0.00019452,2]
[367300583,1750738240015,-460.0,0.00019452,2]
[367300584,1750738240025,-460.0,0.00019452,2]
[367300585,1750738240035,-334.51013867,0.00019452,2]
[367300586,1750738240045,-605.05,0.00019452,2]
[367300587,1750738240055,-460.0,0.00019452,2]
[367300588,1750738240064,-460.0,0.00019452,2]
[367300589,1750738240074,-460.0,0.00019452,2]
[367300590,1750738240084,-460.0,0.00019452,2]
[367300591,1750738240093,-460.0,0.00019452,2]
[367300592,1750738240103,-460.0,0.00019452,2]
[367300593,1750738240112,-460.0,0.00019452,2]
[367300594,1750738240121,-460.0,0.00019452,2]
[367300595,1750738240130,-460.0,0.00019452,2]
[367300596,1750738240140,-460.0,0.00019452,2]
[367300597,1750738240149,-460.0,0.00019452,2]
[367300598,1750738240158,-460.0,0.00019452,2]
[367300599,1750738240167,-460.0,0.00019452,2]
[367300600,1750738240177,-460.0,0.00019452,2]
[367300601,1750738240186,-2142.24,0.00019452,2]
[367300606,1750738240196,-687.49,0.00019452,2]
[367300607,1750738240368,-1970.86,0.00019452,2]
[367300608,1750738240378,-460.0,0.00019452,2]
[367300609,1750738240389,-722.44,0.00019452,2]
[367300610,1750738240398,-562.81,0.00019452,2]
[367300611,1750738240407,-1298.04,0.00019452,2]
[367300612,1750738240416,-460.0,0.00019452,2]
[367300613,1750738240425,-516.97,0.00019452,2]
[367300614,1750738240434,-460.0,0.00019452,2]
[367300615,1750738240444,-625.28,0.00019452,2]
[367300616,1750738240453,-1816.61,0.00019452,2]
[367300617,1750738240462,-460.0,0.00019452,2]
[367300618,1750738240471,-460.0,0.00019452,2]
[367300619,1750738240480,-460.0,0.00019452,2]
[367300620,1750738240489,-460.0,0.00019452,2]
[367300621,1750738240498,-1560.02,0.00019452,2]
[367300622,1750738240507,-4491.91,0.00019452,2]
[367300623,1750738240517,-1473.56,0.00019452,2]
[367300624,1750738240527,-714.99,0.00019452,2]
[367300625,1750738240537,-460.0,0.00019452,2]
[367300626,1750738240546,-359.44218787,0.00019452,2]
[367300627,1750738240556,-460.0,0.00019452,2]
[367300628,1750738240565,-917.68,0.00019452,2]
[367300629,1750738240575,-1147.36,0.00019452,2]
[367300630,1750738240585,-2445.98,0.00019452,2]
[367300631,1750738240594,-718.52,0.00019452,2]
[367300632,1750738240603,-460.0,0.00019452,2]
[367300633,1750738240612,-460.0,0.00019452,2]
[367300634,1750738240621,-830.81,0.00019452,2]
[367300636,1750738240630,-2833.66,0.00019452,2]
[367300637,1750738240639,-460.0,0.00019452,2]
[367300639,1750738240649,-826.26,0.00019452,2]
[367300641,1750738240658,-615.31,0.00019452,2]
[367300642,1750738240667,-460.0,0.00019452,2]
[367300643,1750738240676,-673.38,0.00019452,2]
[367300644,1750738240685,-1105.83,0.00019452,2]
[367300645,1750738240694,-702.21,0.00019452,2]
[367300646,1750738240704,-460.0,0.00019452,2]
[367300647,1750738240714,-886.87,0.00019452,2]
[367300648,1750738240723,-551.99,0.00019452,2]
[367300649,1750738240733,-706.29,0.00019452,2]
[367300650,1750738240742,-1737.76,0.00019452,2]
[367300651,1750738240751,-1605.77,0.00019452,2]
[367300652,1750738240762,-558.57,0.00019452,2]
[367300653,1750738240772,-1908.57,0.00019452,2]
[367300654,1750738240782,-569.34,0.00019452,2]
[367300655,1750738240793,-2152.46,0.00019452,2]
[367300656,1750738240803,-460.0,0.00019452,2]
[367300658,1750738240812,-940.78,0.00019452,2]
[367300660,1750738240821,-678.37,0.00019452,2]
[367300662,1750738240830,-657.5,0.00019452,2]
[367300663,1750738240839,-648.94,0.00019452,2]
[367300664,1750738240849,-406.30644954,0.00019452,2]
[367300665,1750738240858,-1599.4,0.00019452,2]
[367300666,1750738240867,-510.07,0.00019452,2]
[367300667,1750738240876,-460.0,0.00019452,2]
[367300668,1750738240886,-289.62000219,0.00019452,2]
[367300669,1750738240895,-460.0,0.00019452,2]
[367300670,1750738240904,-961.36,0.00019452,2]
[367300671,1750738240913,-160.0,0.00019486,5]
[367300672,1750738240923,-312.0,0.000195,4]
[367300673,1750738240933,-213.66798275,0.00019537,2]
[367300674,1750738240943,-846.68469334,0.00019537,2]
[367300675,1750738240953,-836.80226758,0.00019537,2]
[367300676,1750738240962,-425.14181427,0.00019537,2]
[367300677,1750738240971,-230.20892031,0.00019537,2]
[367300678,1750738240980,-160.0,0.00019537,2]
[367300679,1750738240989,-160.0,0.00019537,2]
[367300680,1750738240999,-160.0,0.00019537,2]
[367300681,1750738241008,-12556.00642039,0.00019537,2]
[367300682,1750738241018,-160.0,0.00019537,2]
[367300683,1750738241027,-160.0,0.00019537,2]
[367300684,1750738241036,-573.4946409,0.000196,2]
[367300685,1750738241046,-460.0,0.00019726,2]
[367300686,1750738241055,-460.0,0.00019726,2]
[367300687,1750738241064,-460.0,0.00019726,2]
[367300688,1750738241074,-460.0,0.00019726,2]
[367300689,1750738241083,-460.0,0.00019726,2]
[367300690,1750738241093,-460.0,0.00019726,2]
[367300691,1750738241103,-460.0,0.00019726,2]
[367300692,1750738241112,-460.0,0.00019726,2]
[367300693,1750738241122,-1270.9,0.00019726,2]
[367300694,1750738241131,-460.0,0.00019726,2]
[367300695,1750738241140,-460.0,0.00019726,2]
[367300696,1750738241150,-460.0,0.00019726,2]
[367300697,1750738241159,-460.0,0.00019726,2]
[367300698,1750738241169,-605.05,0.00019726,2]
[367300699,1750738241178,-460.0,0.00019726,2]
[367300700,1750738241187,-460.0,0.00019726,2]
[367300701,1750738241197,-460.0,0.00019726,2]
[367300702,1750738241206,-460.0,0.00019726,2]
[367300703,1750738241215,-266.93963719,0.00019726,2]
[367300704,1750738241224,-460.0,0.00019726,2]
[367300705,1750738241233,-460.0,0.00019726,2]
[367300706,1750738241243,-460.0,0.00019726,2]
[367300707,1750738241252,-445.67102863,0.00019726,2]
[367300708,1750738241262,-460.0,0.00019726,2]
[367300709,1750738241271,-536.72415031,0.00019726,2]
[367300710,1750738241280,-460.0,0.00019726,2]
[367300711,1750738241289,-227.99664175,0.00019726,2]
[367300712,1750738241299,-2142.24,0.00019726,2]
[367300713,1750738241311,-687.49,0.00019726,2]
[367300714,1750738241321,-1970.86,0.00019726,2]
[367300715,1750738241330,-460.0,0.00019726,2]
[367300716,1750738241339,-722.44,0.00019726,2]
[367300717,1750738241350,-562.81,0.00019726,2]
[367300718,1750738241360,-1298.04,0.00019726,2]
[367300719,1750738241370,-460.0,0.00019726,2]
[367300720,1750738241382,-516.97,0.00019726,2]
[367300721,1750738241391,-460.0,0.00019726,2]
[367300722,1750738241402,-625.28,0.00019726,2]
[367300723,1750738241411,-1816.61,0.00019726,2]
[367300724,1750738241421,-460.0,0.00019726,2]
[367300725,1750738241432,-460.0,0.00019726,2]
[367300726,1750738241441,-460.0,0.00019726,2]
[367300727,1750738241452,-1560.02,0.00019726,2]
[367300728,1750738241461,-460.0,0.00019726,2]
[367300729,1750738241470,-4491.91,0.00019726,2]
[367300730,1750738241480,-1473.56,0.00019726,2]
[367300731,1750738241489,-714.99,0.00019726,2]
[367300732,1750738241500,-460.0,0.00019726,2]
[367300733,1750738241510,-578.15459943,0.00019726,2]
[367300734,1750738241519,-917.68,0.00019726,2]
[367300735,1750738241528,-1147.36,0.00019726,2]
[367300736,1750738241541,-2445.98,0.00019726,2]
[367300737,1750738241550,-718.52,0.00019726,2]
[367300738,1750738241559,-460.0,0.00019726,2]
[367300739,1750738241569,-460.0,0.00019726,2]
[367300740,1750738241579,-830.81,0.00019726,2]
[367300741,1750738241590,-2833.66,0.00019726,2]
[367300742,1750738241600,-460.0,0.00019726,2]
[367300743,1750738241609,-615.31,0.00019726,2]
[367300744,1750738241621,-826.26,0.00019726,2]
[367300745,1750738241631,-233.37028224,0.00019726,2]
[367300747,1750738241640,-673.38,0.00019726,2]
[367300748,1750738241650,-1105.83,0.00019726,2]
[367300749,1750738241660,-702.21,0.00019726,2]
[367300750,1750738241669,-460.0,0.00019726,2]
[367300751,1750738241678,-886.87,0.00019726,2]
[367300752,1750738241687,-551.99,0.00019726,2]
[367300753,1750738241697,-706.29,0.00019726,2]
[367300754,1750738241706,-1737.76,0.00019726,2]
[367300755,1750738241716,-1605.77,0.00019726,2]
[367300756,1750738241726,-558.57,0.00019726,2]
[367300757,1750738241735,-1908.57,0.00019726,2]
[367300758,1750738241745,-569.34,0.00019726,2]
[367300759,1750738241755,-2152.46,0.00019726,2]
[367300760,1750738241765,-460.0,0.00019726,2]
[367300761,1750738241774,-940.78,0.00019726,2]
[367300762,1750738241784,-678.37,0.00019726,2]
[367300763,1750738241793,-657.5,0.00019726,2]
[367300764,1750738241802,-648.94,0.00019726,2]
[367300765,1750738241811,-1599.4,0.00019726,2]
[367300766,1750738241820,-510.07,0.00019726,2]
[367300767,1750738241829,-460.0,0.00019726,2]
[367300768,1750738241838,-961.36,0.00019726,2]
[367300769,1750738241847,-460.0,0.00019726,2]
[367300770,1750738241856,-977.821,0.00019796,2]
[367300771,1750738241866,-160.0,0.00019825,6]
[367300772,1750738241876,-1002.562283,0.00019863,2]
[367300773,1750738241885,-365.6405962,0.0001989,2]
[367300774,1750738241896,-365.9458251,0.00019918,2]
[367300775,1750738241906,-365.9458251,0.00019918,2]
[367300776,1750738241916,-460.0,0.0002,2]
[367300777,1750738241926,-460.0,0.0002,2]
[367300778,1750738241935,-460.0,0.0002,2]
[367300779,1750738241944,-460.0,0.0002,2]
[367300780,1750738241954,-460.0,0.0002,2]
[367300781,1750738241964,-460.0,0.0002,2]
[367300782,1750738241973,-460.0,0.0002,2]
[367300783,1750738241983,-151.61919209,0.0002,2]
[367300784,1750738241992,-1270.9,0.0002,2]
[367300785,1750738242001,-460.0,0.0002,2]
[367300786,1750738242010,-460.0,0.0002,2]
[367300787,1750738242020,-460.0,0.0002,2]
[367300788,1750738242030,-460.0,0.0002,2]
[367300789,1750738242039,-605.05,0.0002,2]
[367300790,1750738242048,-460.0,0.0002,2]
[367300791,1750738242058,-460.0,0.0002,2]
[367300792,1750738242067,-460.0,0.0002,2]
[367300793,1750738242076,-460.0,0.0002,2]
[367300794,1750738242086,-460.0,0.0002,2]
[367300795,1750738242095,-460.0,0.0002,2]
[367300796,1750738242104,-460.0,0.0002,2]
[367300797,1750738242113,-460.0,0.0002,2]
[367300798,1750738242123,-460.0,0.0002,2]
[367300799,1750738242132,-2142.24,0.0002,2]
[367300800,1750738242141,-687.49,0.0002,2]
[367300801,1750738242151,-1970.86,0.0002,2]
[367300802,1750738242160,-460.0,0.0002,2]
[367300803,1750738242169,-722.44,0.0002,2]
[367300804,1750738242179,-562.81,0.0002,2]
[367300805,1750738242188,-1298.04,0.0002,2]
[367300806,1750738242197,-460.0,0.0002,2]
[367300807,1750738242207,-516.97,0.0002,2]
[367300808,1750738242216,-460.0,0.0002,2]
[367300809,1750738242225,-625.28,0.0002,2]